bitfinex/quotes_BTCUSD_20241215
["timestamp","ask_amount","ask_price","bid_price","bid_amount"]
[1734292983570,0.0001724,103220.0,103210.0,5.79057298]
[1734292983780,0.0001724,103220.0,103210.0,5.50642333]
[1734292985970,0.0001724,103220.0,103210.0,5.65642333]
[1734292986408,0.0001724,103220.0,103210.0,5.48243149]
[1734292986628,0.0001724,103220.0,103210.0,5.05715749]
[1734292986850,0.0001724,103220.0,103210.0,4.92699082]
[1734292987062,0.0001724,103220.0,103210.0,4.82051082]
[1734292987290,0.0051275,103220.0,103210.0,4.82051082]
[1734292988139,0.0051275,103220.0,103210.0,4.93650538]
[1734292989933,0.0001724,103220.0,103210.0,4.9364322]
[1734292990137,0.0051275,103220.0,103210.0,5.0664891]
[1734292990343,0.0001724,103220.0,103210.0,5.0664891]
[1734292991799,0.0051275,103220.0,103210.0,5.5982431]
[1734292992012,0.0051275,103220.0,103210.0,5.4681862]
[1734292992013,0.0001724,103220.0,103210.0,5.4681862]
[1734292992694,0.0001724,103220.0,103210.0,5.87128096]
[1734292993106,0.0001724,103220.0,103210.0,5.4681862]
[1734292993358,0.0001724,103220.0,103210.0,5.5982431]
[1734292993608,0.0001724,103220.0,103210.0,5.87106979]
[1734292993869,0.0001724,103220.0,103210.0,6.044479]
[1734292994395,0.0051275,103220.0,103210.0,6.044479]
[1734292994690,0.0813275,103220.0,103210.0,6.044479]
[1734292995634,0.0813275,103220.0,103210.0,6.26192407]
[1734292996171,0.0813275,103220.0,103210.0,6.04505269]
[1734292997182,0.0813275,103220.0,103210.0,6.26192407]
[1734292998171,0.0051275,103220.0,103210.0,6.32421229]
[1734292998427,0.0051275,103220.0,103210.0,6.17946646]
[1734292998688,0.0051275,103220.0,103210.0,6.17954236]
[1734292998951,0.0051275,103220.0,103210.0,6.04934364]
[1734293001909,0.0051275,103220.0,103210.0,5.87584654]
[1734293002123,0.0051275,103220.0,103210.0,5.93384382]
[1734293002345,0.00493154,103220.0,103210.0,5.93384382]
[1734293002815,0.08783154,103220.0,103210.0,5.87584654]
[1734293004062,0.08783154,103220.0,103210.0,5.55374853]
[1734293004307,0.08783154,103220.0,103210.0,5.52474753]
[1734293004557,0.08783154,103220.0,103210.0,5.35089454]
[1734293006264,0.18493154,103220.0,103210.0,1.75212724]
[1734293006475,0.28415797,103220.0,103210.0,2.04580769]
[1734293006897,0.28415797,103220.0,103210.0,1.85957103]
[1734293007319,0.28415797,103220.0,103210.0,1.97556559]
[1734293007535,0.28415797,103220.0,103210.0,1.85957103]
[1734293007536,0.23415797,103220.0,103210.0,1.85957103]
[1734293007751,0.23415797,103220.0,103210.0,1.05273122]
[1734293007967,0.23415797,103220.0,103210.0,0.77936814]
[1734293008847,0.23415797,103220.0,103210.0,0.64892948]
[1734293010625,0.23415797,103220.0,103210.0,0.43163616]
[1734293010831,0.42791797,103220.0,103210.0,8.62e-05]
[1734293011910,0.56459136,103220.0,103210.0,8.62e-05]
[1734293012277,0.47791797,103220.0,103210.0,8.62e-05]
[1734293012501,0.56459136,103220.0,103210.0,8.62e-05]
[1734293012719,0.55091797,103220.0,103210.0,8.62e-05]
[1734293012927,0.323779,103210.0,103200.0,0.00024988]
[1734293013153,0.42283303,103210.0,103200.0,0.00024988]
[1734293013362,0.42774892,103210.0,103200.0,0.00024988]
[1734293016040,0.55074892,103210.0,103200.0,0.00024988]
[1734293019200,0.1237,103180.0,103170.0,0.25192448]
[1734293019434,0.22275403,103180.0,103170.0,0.251979]
[1734293019685,0.22776459,103180.0,103170.0,0.251979]
[1734293020427,0.22776459,103180.0,103170.0,0.401979]
[1734293020652,0.22776459,103180.0,103170.0,0.43541961]
[1734293043532,0.42160059,103180.0,103170.0,0.15014072]
[1734293043757,0.42160059,103180.0,103170.0,0.00014072]
[1734293045434,0.52160059,103180.0,103170.0,0.00014072]
[1734293052845,0.54460059,103180.0,103170.0,0.00014072]
[1734293053326,0.49460059,103180.0,103170.0,0.00014072]
[1734293053546,0.59365462,103180.0,103170.0,0.00014072]
[1734293053743,0.49460059,103180.0,103170.0,0.00014072]
[1734293054182,0.44460059,103180.0,103170.0,0.00014072]
[1734293056620,0.5310391,103180.0,103170.0,0.00014072]
[1734293056875,0.66069686,103180.0,103170.0,0.00014072]
[1734293057136,0.83357388,103180.0,103170.0,0.00014072]
[1734293057575,1.04967015,103180.0,103170.0,0.00014072]
[1734293058568,0.83357388,103180.0,103170.0,0.00014072]
[1734293058914,0.83357388,103180.0,103130.0,0.46434]
[1734293058915,0.05,103140.0,103130.0,0.3761675]
[1734293059119,0.09905403,103140.0,103130.0,1.3208795]
[1734293059271,0.1039103,103140.0,103130.0,0.96485403]
[1734293059848,0.1039103,103140.0,103130.0,0.88733303]
[1734293060050,0.1039103,103140.0,103130.0,0.31871575]
[1734293060255,0.1039103,103140.0,103130.0,0.37671303]
[1734293061723,0.1039103,103140.0,103130.0,0.39348778]
[1734293062117,0.1039103,103140.0,103130.0,0.39357398]
[1734293062731,0.1039103,103140.0,103130.0,0.42614502]
[1734293063355,0.1039103,103140.0,103130.0,0.05270173]
[1734293063565,0.1870103,103140.0,103130.0,0.18320277]
[1734293063985,0.1870103,103140.0,103130.0,0.24120005]
[1734293065109,0.1870103,103140.0,103130.0,0.20862901]
[1734293066752,0.1870103,103140.0,103130.0,0.15063173]
[1734293066962,0.1870103,103140.0,103130.0,0.20862901]
[1734293070316,0.1870103,103140.0,103130.0,0.05862901]
[1734293070767,0.2361103,103140.0,103130.0,0.05862901]
[1734293071182,0.4300213,103140.0,103130.0,0.00063173]
[1734293072380,0.5030213,103140.0,103130.0,0.00063173]
[1734293076755,0.5530213,103140.0,103130.0,0.00063173]
[1734293077446,0.5530213,103140.0,103130.0,0.05862901]
[1734293077688,0.5300213,103140.0,103130.0,0.05862901]
[1734293084862,0.5301939,103140.0,103130.0,0.05862901]
[1734293087031,0.6301939,103140.0,103130.0,0.05862901]
[1734293089000,0.6301939,103140.0,103130.0,0.05649601]
[1734293094644,0.6301939,103140.0,103130.0,0.05799728]
[1734293095373,0.6301939,103140.0,103110.0,0.5819901]
[1734293095601,0.09905403,103130.0,103120.0,0.25210605]
[1734293096005,0.1038515,103130.0,103120.0,0.31010333]
[1734293097712,0.1824515,103130.0,103120.0,0.00016377]
[1734293097914,0.1824515,103130.0,103120.0,0.11615833]
[1734293103974,0.1824515,103130.0,103120.0,0.31010633]
[1734293105267,0.1824515,103130.0,103120.0,0.11615833]
[1734293105489,0.1824515,103130.0,103110.0,0.74093077]
[1734293105710,0.1824515,103130.0,103120.0,0.11599456]
[1734293108524,0.1824515,103130.0,103120.0,0.11608086]
[1734293108733,0.1826241,103130.0,103120.0,0.11608086]
[1734293109879,0.1826241,103130.0,103120.0,0.31002886]
[1734293112417,0.1826241,103130.0,103120.0,0.46002886]
[1734293114414,0.1226241,103130.0,103120.0,0.46002886]
[1734293116417,0.0440241,103130.0,103120.0,0.68528363]
[1734293116585,0.0940241,103130.0,103120.0,3.10319421]
[1734293116791,0.0940241,103130.0,103120.0,1.97616421]
[1734293116992,0.0940241,103130.0,103120.0,2.15047919]
[1734293117552,0.0940241,103130.0,103120.0,2.0633217]
[1734293118182,0.0940241,103130.0,103120.0,2.08293066]
[1734293118401,0.0940241,103130.0,103120.0,2.17008749]
[1734293119568,0.0940241,103130.0,103120.0,1.99577251]
[1734293119789,0.0940241,103130.0,103120.0,2.17008749]
[1734293120427,0.0940241,103130.0,103120.0,1.99577251]
[1734293120641,0.0940241,103130.0,103120.0,2.17008749]
[1734293122009,0.0940241,103130.0,103120.0,1.99577251]
[1734293122220,0.0940241,103130.0,103120.0,1.71841816]
[1734293122422,0.0940241,103130.0,103120.0,1.99542733]
[1734293122604,0.0940241,103130.0,103120.0,2.16974231]
[1734293122816,0.0940241,103130.0,103120.0,1.93743005]
[1734293123220,0.0940241,103130.0,103120.0,1.93667398]
[1734293124364,0.0940241,103130.0,103120.0,2.32874335]
[1734293124621,0.0940241,103130.0,103120.0,2.00443735]
[1734293124816,0.0940241,103130.0,103120.0,1.78662103]
[1734293125032,0.0940241,103130.0,103120.0,1.1400979]
[1734293125171,0.0940241,103130.0,103120.0,1.3340459]
[1734293125588,0.0440241,103130.0,103120.0,0.57946734]
[1734293125796,0.1210241,103130.0,103120.0,0.56477211]
[1734293125992,0.1210241,103130.0,103120.0,0.47764559]
[1734293126440,0.1210241,103130.0,103120.0,0.36165103]
[1734293126743,0.1210241,103130.0,103120.0,0.47764559]
[1734293130809,0.1210241,103130.0,103120.0,0.56477211]
[1734293131314,0.1210241,103130.0,103120.0,0.47764559]
[1734293131807,0.1210241,103130.0,103120.0,0.47773189]
[1734293133655,0.1210241,103130.0,103120.0,0.28378389]
[1734293133888,0.1663241,103130.0,103120.0,0.14818037]
[1734293134141,0.3602531,103130.0,103120.0,0.26417493]
[1734293138014,0.3602531,103130.0,103120.0,0.20617765]
[1734293139120,0.4102531,103130.0,103120.0,8.63e-05]
[1734293139332,0.4102531,103130.0,103120.0,0.05808358]
[1734293140052,0.54701445,103130.0,103120.0,0.05808358]
[1734293140549,0.67715648,103130.0,103120.0,0.05808358]
[1734293140766,0.54701445,103130.0,103120.0,0.05808358]
[1734293141434,0.4602531,103130.0,103120.0,0.05808358]
[1734293141916,0.54701445,103130.0,103120.0,0.05808358]
[1734293142596,0.8481401,103130.0,103100.0,0.25198128]
[1734293142813,0.17925403,103120.0,103100.0,0.25213965]
[1734293143027,0.17925403,103120.0,103100.0,0.26729889]
[1734293143250,0.00517636,103110.0,103100.0,0.25213965]
[1734293143483,0.10423039,103110.0,103100.0,0.25213965]
[1734293144830,0.10423039,103110.0,103100.0,0.43540841]
[1734293145048,0.10423039,103110.0,103100.0,0.37741113]
[1734293145258,0.10423039,103110.0,103100.0,0.49340569]
[1734293145875,0.04423039,103110.0,103100.0,0.49340569]
[1734293146092,0.04908117,103110.0,103100.0,0.49340569]
[1734293149800,0.14908117,103110.0,103100.0,0.49340569]
[1734293152724,0.14908117,103110.0,103100.0,0.55140297]
[1734293153338,0.22928117,103110.0,103100.0,0.55140297]
[1734293153564,0.22928117,103110.0,103100.0,0.49340569]
[1734293155031,0.22928117,103110.0,103100.0,0.49349199]
[1734293155453,0.22945377,103110.0,103100.0,0.49349199]
[1734293157032,0.22945377,103110.0,103100.0,0.55148927]
[1734293157667,0.22945377,103110.0,103100.0,0.49349199]
[1734293158101,0.22945377,103110.0,103100.0,0.37749743]
[1734293158321,0.27635377,103110.0,103100.0,0.49349199]
[1734293158536,0.27635377,103110.0,103100.0,0.49379491]
[1734293160031,0.27635377,103110.0,103100.0,0.55194365]
[1734293160244,0.27635377,103110.0,103100.0,0.49379491]
[1734293160454,0.27635377,103110.0,103100.0,0.37749743]
[1734293160670,0.27635377,103110.0,103100.0,0.49379491]
[1734293165332,0.27635377,103110.0,103100.0,0.37749743]
[1734293165546,0.27635377,103110.0,103100.0,0.49379491]
[1734293167333,0.27635377,103110.0,103100.0,0.37749743]
[1734293167488,0.27635377,103110.0,103100.0,0.49379491]
[1734293167689,0.27635377,103110.0,103100.0,0.37749743]
[1734293167917,0.27635377,103110.0,103100.0,0.49379491]
[1734293169567,0.28135377,103110.0,103100.0,0.49379491]
[1734293171339,0.28135377,103110.0,103100.0,0.34379491]
[1734293171547,0.28135377,103110.0,103100.0,0.49379491]
[1734293172010,0.28135377,103110.0,103100.0,0.46052615]
[1734293173661,0.38135377,103110.0,103100.0,0.00024467]
[1734293173872,0.38135377,103110.0,103100.0,0.11654215]
[1734293174077,0.38135377,103110.0,103100.0,0.00024467]
[1734293174288,0.38135377,103110.0,103100.0,0.11654215]
[1734293175742,0.57532077,103110.0,103100.0,0.11654215]
[1734293176170,0.57532077,103110.0,103100.0,0.00024467]
[1734293176367,0.57532077,103110.0,103100.0,0.11654215]
[1734293176574,0.38135377,103110.0,103100.0,0.11654215]
[1734293177413,0.38135377,103110.0,103100.0,0.00024467]
[1734293177618,0.38135377,103110.0,103100.0,0.05839341]
[1734293178019,0.38135377,103110.0,103100.0,0.00024467]
[1734293178233,0.38135377,103110.0,103100.0,0.05839341]
[1734293180828,0.38135377,103110.0,103100.0,0.11654215]
[1734293181243,0.38135377,103110.0,103100.0,0.05839341]
[1734293190405,0.38135377,103110.0,103100.0,0.25237941]
[1734293192444,0.36135377,103110.0,103100.0,0.25237941]
[1734293195312,0.36135377,103110.0,103100.0,0.31052815]
[1734293195960,0.36135377,103110.0,103100.0,0.00024467]
[1734293196375,0.36135377,103110.0,103100.0,0.05839341]
[1734293200963,0.18425377,103110.0,103100.0,0.31052815]
[1734293201246,0.18425377,103110.0,103100.0,0.32044797]
[1734293201461,0.13425377,103110.0,103100.0,0.32044797]
[1734293201678,0.13425377,103110.0,103100.0,0.31052815]
[1734293202982,0.13425377,103110.0,103100.0,0.19423067]
[1734293203198,0.13425377,103110.0,103100.0,0.31052815]
[1734293205620,0.18425377,103110.0,103100.0,0.31052815]
[1734293206491,0.13425377,103110.0,103100.0,0.31052815]
[1734293206712,0.18425377,103110.0,103100.0,0.31052815]
[1734293206935,0.08425377,103110.0,103100.0,0.31052815]
[1734293209386,0.16665377,103110.0,103100.0,0.39764077]
[1734293210036,0.03425377,103110.0,103100.0,0.31052815]
[1734293210263,0.03425377,103110.0,103100.0,0.54764077]
[1734293210508,0.03425377,103110.0,103100.0,3.26140634]
[1734293210742,0.08425377,103110.0,103100.0,3.1356811]
[1734293210950,0.08425377,103110.0,103100.0,3.59330883]
[1734293211174,0.08425377,103110.0,103100.0,3.58594255]
[1734293211175,0.06533975,103110.0,103100.0,3.58594255]
[1734293211824,0.01533975,103110.0,103100.0,3.58594255]
[1734293212237,0.01533975,103110.0,103100.0,3.13070602]
[1734293213465,0.01533975,103110.0,103100.0,3.13064009]
[1734293213676,0.01533975,103110.0,103100.0,3.58512788]
[1734293213893,0.01533975,103110.0,103100.0,3.11045065]
[1734293214129,0.01533975,103110.0,103100.0,3.30443665]
[1734293215197,0.01533975,103110.0,103100.0,3.43489583]
[1734293215413,7.5e-07,103110.0,103100.0,3.28901167]
[1734293215642,0.05,103120.0,103100.0,1.20772871]
[1734293215860,0.05,103120.0,103110.0,3.81344334]
[1734293216077,0.05,103120.0,103110.0,4.30135394]
[1734293216296,0.0501726,103130.0,103110.0,4.61160342]
[1734293216534,0.14887435,103130.0,103120.0,4.58489974]
[1734293216747,0.14887435,103130.0,103120.0,4.25441755]
[1734293216959,0.14887435,103130.0,103120.0,4.19318588]
[1734293217387,0.14887435,103130.0,103120.0,4.30948336]
[1734293217598,0.14887435,103130.0,103120.0,2.24909673]
[1734293217831,0.14887435,103130.0,103120.0,2.05139273]
[1734293218043,0.14887435,103130.0,103120.0,1.63759673]
[1734293218280,0.14887435,103130.0,103120.0,0.79087562]
[1734293218491,0.14887435,103130.0,103120.0,0.84902436]
[1734293221605,0.14887435,103130.0,103120.0,0.81990008]
[1734293221883,0.22737435,103130.0,103120.0,0.81990008]
[1734293222333,0.22754675,103130.0,103120.0,0.87804882]
[1734293223000,0.23453758,103130.0,103120.0,0.87804882]
[1734293223851,0.23453758,103130.0,103120.0,0.89722254]
[1734293227136,0.21453758,103130.0,103120.0,0.89722254]
[1734293229183,0.21453758,103130.0,103120.0,0.90717749]
[1734293230880,0.21453758,103130.0,103120.0,0.93919715]
[1734293233602,0.21453758,103130.0,103120.0,0.78805115]
[1734293233826,0.21453758,103130.0,103120.0,2.30561615]
[1734293234030,0.21453758,103130.0,103120.0,2.30570235]
[1734293235457,0.13603758,103130.0,103120.0,2.30570235]
[1734293236299,0.13603758,103130.0,103120.0,1.42867235]
[1734293240732,0.13603758,103130.0,103120.0,1.39665269]
[1734293240959,0.03698355,103130.0,103120.0,1.39665269]
[1734293242569,0.03698355,103130.0,103120.0,1.39612833]
[1734293246134,0.03698355,103130.0,103120.0,1.48287979]
[1734293246970,0.11898355,103130.0,103120.0,1.48287979]
[1734293249542,0.11898355,103130.0,103120.0,1.47122479]
[1734293250177,0.11898355,103130.0,103120.0,1.89189475]
[1734293250565,0.11898355,103130.0,103120.0,2.19423375]
[1734293250721,0.11898355,103130.0,103120.0,2.02949875]
[1734293251125,0.11898355,103130.0,103120.0,2.20300167]
[1734293253249,0.11898355,103130.0,103120.0,2.41988033]
[1734293254183,0.11898355,103130.0,103120.0,2.33312887]
[1734293255258,0.11898355,103130.0,103120.0,2.20300168]
[1734293256151,0.11898355,103130.0,103120.0,2.02949876]
[1734293257020,0.10481087,103130.0,103120.0,2.02949876]
[1734293261607,0.10481087,103130.0,103120.0,2.03147915]
[1734293262443,0.10481087,103130.0,103120.0,1.81358643]
[1734293262659,0.10481087,103130.0,103120.0,2.03148302]
[1734293264811,0.10481087,103130.0,103120.0,1.6767928]
[1734293264991,0.10481087,103130.0,103120.0,1.85123902]
[1734293265198,0.23358135,103130.0,103120.0,0.97444751]
[1734293265410,0.23358135,103130.0,103120.0,1.02357992]
[1734293265629,0.23358135,103130.0,103120.0,1.15432644]
[1734293265843,0.23358135,103130.0,103120.0,0.33935614]
[1734293266461,0.23358135,103130.0,103120.0,0.48935614]
[1734293267173,0.23358135,103130.0,103120.0,0.57653409]
[1734293268026,0.23358135,103130.0,103120.0,0.48935614]
[1734293268249,0.23375375,103130.0,103120.0,0.48935614]
[1734293271216,0.23375375,103130.0,103120.0,0.37305866]
[1734293271465,0.23375375,103130.0,103120.0,0.48935614]
[1734293291652,0.21375375,103130.0,103120.0,0.48935614]
[1734293294837,0.21375375,103130.0,103120.0,0.37305866]
[1734293295045,0.21375375,103130.0,103120.0,0.48935614]
[1734293295255,0.21375375,103130.0,103120.0,0.4312074]
[1734293296928,0.21375375,103130.0,103120.0,0.37305866]
[1734293297141,0.21375375,103130.0,103120.0,0.4312074]
[1734293298204,0.21375375,103130.0,103120.0,0.2372594]
[1734293298875,0.21375375,103130.0,103120.0,0.4312074]
[1734293304925,0.21375375,103130.0,103120.0,0.2372594]
[1734293306614,0.21375375,103130.0,103120.0,0.4312074]
[1734293307685,0.21375375,103130.0,103120.0,0.2372594]
[1734293308119,0.45768275,103130.0,103120.0,0.17911066]
[1734293310544,0.45768275,103130.0,103120.0,0.2372594]
[1734293311403,0.1257,103120.0,103110.0,0.44718597]
[1734293311626,0.22475403,103120.0,103110.0,0.74366068]
[1734293311845,0.22962554,103120.0,103110.0,0.74366068]
[1734293312296,0.22962554,103120.0,103110.0,0.76806333]
[1734293314466,0.22962554,103120.0,103110.0,0.91806333]
[1734293315075,0.22962554,103120.0,103110.0,0.92245677]
[1734293315206,0.22962554,103120.0,103110.0,0.92313411]
[1734293319111,0.22962554,103120.0,103110.0,0.90393343]
[1734293319342,0.22962554,103120.0,103110.0,0.89953999]
[1734293319544,0.22962554,103120.0,103110.0,0.74953999]
[1734293319745,0.22962554,103120.0,103110.0,0.89953999]
[1734293321207,0.22962554,103120.0,103110.0,1.07394008]
[1734293322370,0.22962554,103120.0,103110.0,0.71389516]
[1734293322584,0.47357354,103120.0,103110.0,0.08720004]
[1734293322800,0.47357354,103120.0,103100.0,0.66863526]
[1734293323014,0.23025403,103110.0,103100.0,0.57466023]
[1734293323230,0.23025403,103110.0,103100.0,8.62e-05]
[1734293323444,0.47907808,103110.0,103100.0,8.62e-05]
[1734293323654,0.47907808,103110.0,103100.0,0.05823494]
[1734293324605,0.45907808,103110.0,103100.0,0.05823494]
[1734293327691,0.45907808,103110.0,103100.0,8.62e-05]
[1734293328115,0.45907808,103110.0,103100.0,0.05823494]
[1734293328743,0.45907808,103110.0,103100.0,0.04269093]
[1734293329011,0.075,103100.0,103090.0,0.34862582]
[1734293329303,0.17405403,103100.0,103090.0,0.34868034]
[1734293329670,0.17887649,103100.0,103090.0,0.34868034]
[1734293331197,0.17887649,103100.0,103090.0,0.2905316]
[1734293331405,0.17887649,103100.0,103090.0,0.34868034]
[1734293332762,0.17887649,103100.0,103090.0,0.2905316]
[1734293332928,0.17887649,103100.0,103090.0,0.34868034]
[1734293334497,0.17887649,103100.0,103090.0,0.2905316]
[1734293334702,0.17887649,103100.0,103090.0,0.34868034]
[1734293336779,0.22597649,103100.0,103090.0,0.34868034]
[1734293338896,0.22597649,103100.0,103090.0,0.2905316]
[1734293339047,0.22597649,103100.0,103090.0,0.34868034]
[1734293339639,0.22597649,103100.0,103090.0,0.15468934]
[1734293340235,0.22597649,103100.0,103090.0,0.0965406]
[1734293340472,0.22597649,103100.0,103090.0,0.15468934]
[1734293340702,0.22597649,103100.0,103090.0,0.34869434]
[1734293342362,0.22597649,103100.0,103090.0,0.2905456]
[1734293342588,0.22597649,103100.0,103090.0,0.34869434]
[1734293343458,0.22597649,103100.0,103090.0,0.49869434]
[1734293344357,0.22597649,103100.0,103090.0,0.47643206]
[1734293345439,0.22597649,103100.0,103090.0,0.28242706]
[1734293348771,0.22614889,103100.0,103090.0,0.47643206]
[1734293350959,0.20614889,103100.0,103090.0,0.47643206]
[1734293354424,0.20614889,103100.0,103090.0,0.41828332]
[1734293354673,0.20614889,103100.0,103090.0,0.47643206]
[1734293357441,0.20614889,103100.0,103090.0,0.41828332]
[1734293357681,0.20614889,103100.0,103090.0,0.47643206]
[1734293362161,0.20614889,103100.0,103090.0,0.5345808]
[1734293362375,0.12103244,103100.0,103090.0,1.96597114]
[1734293362593,0.12103244,103100.0,103090.0,2.05295758]
[1734293362798,0.12103244,103100.0,103090.0,2.56247657]
[1734293363004,0.12103244,103100.0,103090.0,1.63442857]
[1734293363220,0.12103244,103100.0,103090.0,1.17983783]
[1734293363455,0.18214889,103100.0,103090.0,1.00290107]
[1734293363692,0.18214889,103100.0,103090.0,0.47643206]
[1734293365241,0.18214889,103100.0,103090.0,0.41828332]
[1734293365477,0.18214889,103100.0,103090.0,0.47643206]
[1734293365692,0.18214889,103100.0,103090.0,0.41828332]
[1734293365914,0.18214889,103100.0,103090.0,0.47643206]
[1734293367210,0.16214889,103100.0,103090.0,0.47643206]
[1734293367859,0.21094889,103100.0,103090.0,0.28242706]
[1734293370621,0.21094889,103100.0,103090.0,0.13242706]
[1734293371497,0.40493489,103100.0,103090.0,0.13242706]
[1734293377520,0.4027948,103100.0,103090.0,0.13242706]
[1734293383863,0.40443554,103100.0,103090.0,0.13242706]
[1734293384600,0.40443554,103100.0,103090.0,0.07427832]
[1734293385010,0.40443554,103100.0,103090.0,0.13242706]
[1734293387469,0.40443554,103100.0,103080.0,0.27357145]
[1734293387672,0.59842154,103100.0,103090.0,0.05814874]
[1734293387889,0.415705,103090.0,103080.0,5.45e-05]
[1734293388096,0.51475903,103090.0,103080.0,5.45e-05]
[1734293388306,0.52132237,103090.0,103080.0,5.45e-05]
[1734293388721,0.52132237,103090.0,103080.0,0.05820324]
[1734293388919,0.60806072,103090.0,103080.0,0.05820324]
[1734293389144,0.60806072,103090.0,103080.0,5.45e-05]
[1734293391582,0.52132237,103090.0,103080.0,5.45e-05]
[1734293393569,0.50132237,103090.0,103080.0,5.45e-05]
[1734293396890,0.50132237,103090.0,103080.0,0.0001407]
[1734293397550,0.5879519,103090.0,103080.0,0.0001407]
[1734293399402,0.58789047,103090.0,103080.0,0.0001407]
[1734293400012,0.58566459,103090.0,103080.0,0.0001407]
[1734293400854,0.58566075,103090.0,103080.0,0.0001407]
[1734293401275,0.18995575,103090.0,103080.0,0.05828944]
[1734293401485,0.18995575,103090.0,103080.0,0.31110376]
[1734293401486,0.10551678,103090.0,103080.0,0.31110376]
[1734293401694,0.10333124,103090.0,103080.0,0.31110376]
[1734293401903,0.09905403,103090.0,103080.0,0.3378282]
[1734293402966,0.09905403,103090.0,103080.0,0.31046218]
[1734293406734,0.09905403,103090.0,103080.0,0.46046218]
[1734293407163,0.07905403,103090.0,103080.0,0.46046218]
[1734293408413,0.07922643,103090.0,103080.0,0.46046218]
[1734293410644,0.09620998,103090.0,103080.0,1.21252824]
[1734293410891,0.01715595,103090.0,103080.0,1.29955431]
[1734293411926,0.0001724,103090.0,103080.0,1.33485431]
[1734293412131,0.0001724,103090.0,103080.0,1.46539342]
[1734293412329,0.0001724,103090.0,103080.0,1.63944556]
[1734293412731,0.0001724,103090.0,103080.0,1.63941782]
[1734293412932,0.01715595,103090.0,103080.0,1.63941782]
[1734293413151,0.0001724,103090.0,103080.0,1.63941782]
[1734293414173,0.0001724,103090.0,103080.0,1.63924685]
[1734293415355,0.0001724,103090.0,103080.0,1.76971973]
[1734293415586,0.0001724,103090.0,103080.0,1.63921362]
[1734293415797,0.0001724,103090.0,103080.0,1.76971973]
[1734293416041,0.0001724,103090.0,103080.0,1.63921327]
[1734293416262,4e-07,103090.0,103080.0,1.76971973]
[1734293416480,4e-07,103090.0,103080.0,1.03136929]
[1734293416910,4e-07,103090.0,103080.0,1.16189473]
[1734293417159,4e-07,103090.0,103080.0,1.15347589]
[1734293417374,4e-07,103090.0,103080.0,0.97951206]
[1734293417584,4e-07,103090.0,103080.0,1.15331467]
[1734293418008,8e-07,103100.0,103090.0,0.173]
[1734293418227,0.00012,103110.0,103100.0,0.291686]
[1734293418442,0.00012,103110.0,103100.0,5.96333263]
[1734293418654,0.00012,103110.0,103100.0,6.21260512]
[1734293418875,0.00012,103110.0,103100.0,6.04215324]
[1734293419517,0.00012,103110.0,103100.0,5.82504666]
[1734293420567,0.00012,103110.0,103100.0,5.6513614]
[1734293421277,0.00012,103110.0,103100.0,5.82504666]
[1734293421488,0.00012,103110.0,103100.0,5.6513614]
[1734293421914,0.12444855,103140.0,103110.0,0.15]
[1734293422100,0.12444855,103140.0,103130.0,0.25207774]
[1734293422342,0.22350258,103140.0,103130.0,0.25207774]
[1734293422572,0.22350258,103140.0,103130.0,0.31022648]
[1734293423005,0.22350258,103140.0,103130.0,0.32090296]
[1734293423227,0.22350258,103140.0,103130.0,2.89820596]
[1734293423228,0.09905403,103140.0,103130.0,2.89820596]
[1734293423443,0.09959942,103140.0,103130.0,2.76060896]
[1734293423894,0.09959942,103140.0,103130.0,2.24413396]
[1734293424101,0.09959942,103140.0,103130.0,2.23345748]
[1734293424957,0.09959942,103140.0,103130.0,1.319676]
[1734293425173,0.09959942,103140.0,103130.0,1.27318248]
[1734293426244,0.09959942,103140.0,103130.0,1.29252626]
[1734293426660,0.09959942,103140.0,103130.0,1.05864662]
[1734293426877,0.09959942,103140.0,103130.0,0.26552739]
[1734293427102,0.09959942,103140.0,103130.0,0.45945639]
[1734293427753,0.17799942,103140.0,103130.0,0.45945639]
[1734293429083,0.17799942,103140.0,103130.0,0.67163539]
[1734293429293,0.17799942,103140.0,103130.0,0.45945639]
[1734293430189,0.0784,103130.0,103120.0,0.59601474]
[1734293430399,0.17745403,103130.0,103120.0,0.59601474]
[1734293431031,0.17745403,103130.0,103120.0,0.61549188]
[1734293431696,0.17745403,103130.0,103120.0,0.67364062]
[1734293431908,0.23573724,103130.0,103120.0,0.05814874]
[1734293432129,0.23573724,103130.0,103120.0,0.31024548]
[1734293432351,0.23573724,103130.0,103120.0,0.25209674]
[1734293432578,0.23573724,103130.0,103120.0,0.05814874]
[1734293432810,0.42966624,103130.0,103120.0,0.05814874]
[1734293435604,0.0784,103120.0,103110.0,0.343955]
[1734293435788,0.22685403,103120.0,103110.0,0.343955]
[1734293436005,0.23594101,103120.0,103110.0,0.343955]
[1734293437176,0.23594101,103120.0,103110.0,0.46025248]
[1734293437394,0.23594101,103120.0,103110.0,0.46982712]
[1734293437834,0.23594101,103120.0,103110.0,0.41167838]
[1734293438051,0.23594101,103120.0,103110.0,0.40210374]
[1734293440820,0.21594101,103120.0,103110.0,0.40210374]
[1734293442766,0.21594101,103120.0,103110.0,0.20814874]
[1734293443211,0.21594101,103120.0,103110.0,0.05364762]
[1734293443850,0.21594101,103120.0,103110.0,0.05373382]
[1734293444902,0.26594101,103120.0,103110.0,8.62e-05]
[1734293445550,0.45988901,103120.0,103110.0,8.62e-05]
[1734293447250,0.45988901,103120.0,103110.0,0.05823494]
[1734293448994,0.45948901,103120.0,103110.0,0.05823494]
[1734293449717,0.45948901,103120.0,103110.0,8.62e-05]
[1734293452885,0.50948901,103120.0,103110.0,8.62e-05]
[1734293455209,0.50948901,103120.0,103110.0,0.05823494]
[1734293455432,0.31554101,103120.0,103110.0,0.05823494]
[1734293455644,0.50948901,103120.0,103110.0,0.05823494]
[1734293455886,0.50966141,103120.0,103110.0,0.05823494]
[1734293458129,0.50966141,103120.0,103110.0,8.62e-05]
[1734293459642,0.50966141,103120.0,103110.0,0.05823494]
[1734293462253,0.48966141,103120.0,103110.0,0.05823494]
[1734293464532,0.43966141,103120.0,103110.0,0.05823494]
[1734293464775,0.48966141,103120.0,103110.0,0.05823494]
[1734293466099,0.24571341,103120.0,103110.0,0.05823494]
[1734293466709,0.19571341,103120.0,103110.0,0.05823494]
[1734293466949,0.29571341,103120.0,103110.0,0.05823494]
[1734293468813,0.29571341,103120.0,103110.0,8.62e-05]
[1734293470193,0.24571341,103120.0,103110.0,8.62e-05]
[1734293477582,0.43966141,103120.0,103110.0,8.62e-05]
[1734293477781,0.52621242,103120.0,103110.0,8.62e-05]
[1734293480305,0.65603894,103120.0,103110.0,8.62e-05]
[1734293481537,0.50621242,103120.0,103110.0,8.62e-05]
[1734293481956,0.63603894,103120.0,103110.0,8.62e-05]
[1734293482165,0.60903894,103120.0,103110.0,8.62e-05]
[1734293482808,0.9119675,103120.0,103110.0,8.62e-05]
[1734293483020,0.60674632,103120.0,103110.0,8.62e-05]
[1734293483233,0.65228769,103120.0,103110.0,8.62e-05]
[1734293483442,0.39263465,103120.0,103110.0,8.62e-05]
[1734293483661,0.65270487,103120.0,103110.0,8.62e-05]
[1734293486203,0.65253182,103120.0,103110.0,8.62e-05]
[1734293489716,0.6703227,103120.0,103110.0,8.62e-05]
[1734293492362,0.6473227,103120.0,103110.0,8.62e-05]
[1734293493336,0.6473227,103120.0,103110.0,0.05814874]